Workbook

Sheet Ausfüllhinweise
A1: Berechnungsvorlage: Einsparpotenzial von CO2-Äquivalenten (CO2e) des in der Machbarkeitsstudie untersuchten Sachverhalts
A4: Ziel der Förderung von Machbarkeitsstudien ist eine nachgelagerte Beschaffung von Fahrzeugen mit alternativen Antrieben bzw. die Umstellung der Bestandsflotte. Zur Erfolgsabschätzung der Machbarkeitsstudien muss vom Zuwendungsempfänger das CO2-Einsparpotenzial abgeschätzt und im Abschlussbericht erläutert werden. Nutzen Sie bitte diese Excel-Berechnungsvorlage für die Abschätzung des CO2-Einsparpotenzials. Falls die Machbarkeitsstudie nur bestimmte Aspekte der Umstellung der Busflotte abdeckt (z.B. Energieversorgung oder Betriebshof-Umrüstung), notieren Sie dies bitte in der Kurzbeschreibung im Tabellblatt 'Berechnung'. Es ist nicht erforderlich, eine Abschätzung des CO2-Einsparpotenzials für diese spezifischen Teilaspekte anzugeben. Ausfüllhinweis: Füllen Sie nur die weißen Felder der Tabellen aus. Der ausgegraute Bereich berechnet sich dann entsprechend Ihrer Eingaben. Wichtig: Hierüber soll Ihnen die Berechnung erleichtert werden. Formulieren Sie Ihre Ergebnisse in Ihrem Abschlussbericht unter dem Punkt 4.8. Ergänzen Sie gerne weitere Maßnahmen spezifische Erläuterungen! Übermitteln Sie uns diese Tabelle im Excel-Format per E-Mail für die Begleitforschung an: busse@now-gmbh.de Version 1.0

Sheet Berechnung
A1: Berechnungsvorlage
A2: Bedienung:
A3: Die Daten in den Spalten A bis F dienen als Beispiele und müssen vor der Eingabe individueller Informationen gelöscht werden. Bitte ersetzen Sie diese Beispielwerte durch die entsprechenden eigenen Daten.
A4: Die Fahrzeugklasse muss korrekt in Spalte C eingetragen werden, damit der richtige Emissionsfaktor ausgewählt wird.
A6: Förderkennzeichen:
A8: Maßnahme | B8: Kurzbeschreibung | C8: Fahrzeugklasse | D8: Antriebssystem | E8: Anzahl | F8: Durchschnittliche Fahrleistung km /Jahr | G8: Nutzungsdauer in Jahren | H8: Emissionsfaktor (kg CO2e /km) | I8: CO2-Einsparung in t CO2e /Jahr | J8: CO2-Einsparung in t CO2e / Nutzungsdauer
A9: Beispiel A | B9: Teilumstellung Bestandsflotte | C9: Solobus (10,6 - 16m) | D9: Batterie | E9: 5 | F9: 60000 | G9: =IF(ISBLANK(F9),"","12") -> 12 | H9: =IFERROR(VLOOKUP(C9,Tabelle2[#All],2,FALSE),"") -> 0.936 | I9: =IFERROR(((E9*F9*H9)/1000),"") -> 280.8 | J9: =IFERROR(I9*G9,"") -> 3369.6
C10: Gelenkbus (ab 16m) | D10: Brennstoffzelle | E10: 2 | F10: 60000 | G10: =IF(ISBLANK(F10),"","12") -> 12 | H10: =IFERROR(VLOOKUP(C10,Tabelle2[#All],2,FALSE),"") -> 1.26 | I10: =IFERROR(((E10*F10*H10)/1000),"") -> 151.2 | J10: =IFERROR(I10*G10,"") -> 1814.4
A11: Beispiel B | B11: Gesamtumstellung Bestandsflotte | C11: Solobus (10,6 - 16m) | D11: Batterie | E11: 40 | F11: 60000 | G11: 12 | H11: =IFERROR(VLOOKUP(C11,Tabelle2[#All],2,FALSE),"") -> 0.936 | I11: =IFERROR(((E11*F11*H11)/1000),"") -> 2246.4 | J11: =IFERROR(I11*G11,"") -> 26956.8
C12: Gelenkbus (ab 16m) | D12: Batterie | E12: 25 | F12: 60000 | G12: 12 | H12: =IFERROR(VLOOKUP(C12,Tabelle2[#All],2,FALSE),"") -> 1.26 | I12: 1890 | J12: 22680
A13: Beispiel C | B13: Untersuchung zur lokalen Versorgung mit grünem Wasserstoff | H13: =IFERROR(VLOOKUP(C13,Tabelle2[#All],2,FALSE),"") -> 
H14: =IFERROR(VLOOKUP(C14,Tabelle2[#All],2,FALSE),"") -> 
H15: =IFERROR(VLOOKUP(C15,Tabelle2[#All],2,FALSE),"") -> 
H16: =IFERROR(VLOOKUP(C16,Tabelle2[#All],2,FALSE),"") -> 
H17: =IFERROR(VLOOKUP(C17,Tabelle2[#All],2,FALSE),"") -> 
H18: =IFERROR(VLOOKUP(C18,Tabelle2[#All],2,FALSE),"") -> 
H19: =IFERROR(VLOOKUP(C19,Tabelle2[#All],2,FALSE),"") -> 
H20: =IFERROR(VLOOKUP(C20,Tabelle2[#All],2,FALSE),"") -> 
H21: =IFERROR(VLOOKUP(C21,Tabelle2[#All],2,FALSE),"") -> 
H22: =IFERROR(VLOOKUP(C22,Tabelle2[#All],2,FALSE),"") -> 
H23: =IFERROR(VLOOKUP(C23,Tabelle2[#All],2,FALSE),"") -> 
H24: =IFERROR(VLOOKUP(C24,Tabelle2[#All],2,FALSE),"") -> 
A25: Summe | I25: =SUM(I9:I24) -> 4568.4 | J25: =SUM(J9:J24) -> 54820.8
A27: Annahmen:
A28: Der benötigten Strom wird ausschließlich auf Basis Erneuerbarer Energien hergestellt und damit entstehen im Betrieb keine CO2-Emissionen. Diese Annahme leitet sich daraus ab, dass die Verwendung von EE-Strom Zuwendungsvoraussetzung für eine nachgelagerte Beschaffung von Fahrzeugen ist und damit als Bedingung vorausgesetzt ist. Zusätzlich wird vorausgesetzt, dass der verwendete Wasserstoff ausschließlich durch Strom aus erneuerbaren Energiequellen erzeugt wird.
A29: Die beschafften Fahrzeuge ersetzen vergleichbare Verbrenner-Fahrzeuge.
A30: Für eine stringente Vorgehensweise wird hier die Tank-to-wheel (TTW) Perspektive eingenommen.
A31: Für die Ermittlung der Treibhausgasminderung nehmen wir eine Haltedauer von 12 Jahren bei den Fahrzeugen an.
A32: Doppeldecker-Fahrzeuge werden der Fahrzeugklasse 'Gelenkbus (ab 16m)' zugeordnet.

Sheet Emissionsfaktoren
A1: Emissionsfaktoren
A3: Fahrzeugklasse | B3: E-Faktor [kg CO2e/km]
A4: Mini-Bus (bis 8m) | B4: 0.4
A5: Midi-Bus (8 - 10,6m) | B5: 0.641
A6: Solobus (10,6 - 16m) | B6: 0.936
A7: Gelenkbus (ab 16m) | B7: 1.26
A9: Die aufgelisteten Emissionsfaktoren wurden dem Handbuch für Emissionsfaktoren (HBEFA) entnommen

Sheet Antriebssystem (hidden)
A1: Antriebssystem
A2: Batterie
A3: Brennstoffzelle
